fUST/lending_fUST_20250817
["ID","MTS","AMOUNT","RATE_DAILY","PERIOD"]
[379692263,1755373839507,-480.0,0.00020161,2]
[379692264,1755373839516,-5257.64,0.00020161,2]
[379692265,1755373839525,-480.0,0.00020161,2]
[379692266,1755373839535,-460.0,0.00020161,2]
[379692267,1755373839545,-480.0,0.00020161,2]
[379692268,1755373839554,-578.9574,0.00020161,2]
[379692269,1755373839563,-1343.74,0.00020161,2]
[379692270,1755373839572,-2877.76,0.00020161,2]
[379692271,1755373839581,-780.02,0.00020161,2]
[379692272,1755373839590,-461.437109,0.00020161,2]
[379692273,1755373839599,-480.0,0.00020161,2]
[379692274,1755373839609,-480.0,0.00020161,2]
[379692275,1755373839619,-1198.77,0.00020161,2]
[379692276,1755373839628,-480.0,0.00020161,2]
[379692277,1755373839638,-480.0,0.00020161,2]
[379692278,1755373839647,-480.0,0.00020161,2]
[379692279,1755373839657,-480.0,0.00020161,2]
[379692280,1755373839666,-480.0,0.00020161,2]
[379692281,1755373839675,-933.44,0.00020161,2]
[379692282,1755373839684,-4037.94,0.00020161,2]
[379692283,1755373839693,-460.0,0.00020161,2]
[379692284,1755373839702,-480.0,0.00020161,2]
[379692285,1755373839712,-480.0,0.00020161,2]
[379692286,1755373839721,-480.0,0.00020161,2]
[379692287,1755373839730,-488.23,0.00020161,2]
[379692288,1755373839739,-480.0,0.00020161,2]
[379692289,1755373839749,-460.0,0.00020161,2]
[379692290,1755373839758,-669.23843825,0.00020162,2]
[379692291,1755373839766,-500.0,0.00020162,2]
[379692292,1755373839775,-737.78,0.00020162,2]
[379692293,1755373839784,-480.0,0.00020162,2]
[379692294,1755373839794,-460.0,0.00020162,2]
[379692295,1755373839803,-480.0,0.00020162,2]
[379692296,1755373839812,-460.0,0.00020162,2]
[379692297,1755373839821,-480.0,0.00020162,2]
[379692298,1755373839830,-480.0,0.00020162,2]
[379692299,1755373839839,-480.0,0.00020162,2]
[379692300,1755373839851,-480.0,0.00020162,2]
[379692301,1755373839860,-480.0,0.00020162,2]
[379692302,1755373839869,-480.0,0.00020162,2]
[379692303,1755373839878,-1249.76,0.00020162,2]
[379692304,1755373839887,-480.0,0.00020162,2]
[379692305,1755373839897,-2264.36,0.00020162,2]
[379692306,1755373839907,-480.0,0.00020162,2]
[379692307,1755373839916,-1186.54,0.00020162,2]
[379692308,1755373839925,-480.0,0.00020162,2]
[379692309,1755373839935,-480.0,0.00020162,2]
[379692310,1755373839945,-480.0,0.00020162,2]
[379692311,1755373839955,-480.0,0.00020162,2]
[379692312,1755373839963,-480.0,0.00020162,2]
[379692313,1755373839972,-480.0,0.00020162,2]
[379692314,1755373839982,-480.0,0.00020162,2]
[379692315,1755373839991,-480.0,0.00020162,2]
[379692316,1755373840000,-461.977182,0.00020162,2]
[379692317,1755373840010,-704.56,0.00020162,2]
[379692318,1755373840020,-480.0,0.00020162,2]
[379692319,1755373840030,-1430.04,0.00020162,2]
[379692320,1755373840039,-579.83,0.00020162,2]
[379692321,1755373840048,-579.83,0.00020162,2]
[379692322,1755373840057,-579.83,0.00020162,2]
[379692323,1755373840067,-1082.0,0.00020162,2]
[379692324,1755373840076,-1229.86,0.00020162,2]
[379692325,1755373840086,-480.0,0.00020162,2]
[379692326,1755373840095,-480.0,0.00020162,2]
[379692327,1755373840104,-480.0,0.00020162,2]
[379692328,1755373840113,-878.28,0.00020162,2]
[379692329,1755373840122,-1446.21,0.00020162,2]
[379692331,1755373840132,-1577.48,0.00020162,2]
[379692332,1755373840141,-168.3628248,0.00020162,2]
[379692333,1755373840151,-480.0,0.00020162,2]
[379692334,1755373840160,-480.0,0.00020162,2]
[379692335,1755373840169,-496.72,0.00020162,2]
[379692336,1755373840178,-480.0,0.00020162,2]
[379692337,1755373840188,-480.0,0.00020162,2]
[379692338,1755373840197,-1477.4,0.00020162,2]
[379692339,1755373840207,-460.0,0.00020162,2]
[379692340,1755373840216,-480.0,0.00020162,2]
[379692341,1755373840226,-1014.41,0.00020162,2]
[379692342,1755373840236,-480.0,0.00020162,2]
[379692343,1755373840247,-480.0,0.00020162,2]
[379692344,1755373840256,-480.0,0.00020162,2]
[379692345,1755373840266,-1319.62,0.00020162,2]
[379692346,1755373840275,-682.65,0.00020162,2]
[379692347,1755373840285,-553.85,0.00020162,2]
[379692348,1755373840295,-460.45777275,0.00020162,2]
[379692349,1755373840304,-480.0,0.00020162,2]
[379692350,1755373840313,-854.93,0.00020162,2]
[379692352,1755373840323,-12706.79,0.00020162,2]
[379692353,1755373840332,-480.0,0.00020162,2]
[379692354,1755373840342,-480.0,0.00020162,2]
[379692355,1755373840351,-1230.6,0.00020162,2]
[379692356,1755373840360,-1823.93,0.00020162,2]
[379692357,1755373840370,-480.0,0.00020162,2]
[379692358,1755373840379,-480.0,0.00020162,2]
[379692359,1755373840388,-480.0,0.00020162,2]
[379692360,1755373840398,-480.0,0.00020162,2]
[379692361,1755373840408,-480.0,0.00020162,2]
[379692362,1755373840417,-480.0,0.00020162,2]
[379692363,1755373840427,-1511.35,0.00020162,2]
[379692364,1755373840436,-480.0,0.00020162,2]
[379692365,1755373840445,-460.94801275,0.00020162,2]
[379692366,1755373840455,-1050.7,0.00020162,2]
[379692367,1755373840464,-480.0,0.00020162,2]
[379692368,1755373840473,-480.0,0.00020162,2]
[379692369,1755373840610,-480.0,0.00020162,2]
[379692370,1755373840621,-1293.59,0.00020162,2]
[379692371,1755373840630,-480.0,0.00020162,2]
[379692372,1755373840639,-480.0,0.00020162,2]
[379692373,1755373840649,-480.0,0.00020162,2]
[379692374,1755373840658,-480.0,0.00020162,2]
[379692375,1755373840667,-480.0,0.00020162,2]
[379692376,1755373840678,-480.0,0.00020162,2]
[379692377,1755373840692,-480.0,0.00020162,2]
[379692378,1755373840702,-935.03,0.00020162,2]
[379692379,1755373840711,-480.0,0.00020162,2]
[379692380,1755373840721,-547.43,0.00020162,2]
[379692381,1755373840729,-480.0,0.00020162,2]
[379692382,1755373840739,-480.0,0.00020162,2]
[379692383,1755373840748,-718.6,0.00020162,2]
[379692384,1755373840757,-480.0,0.00020162,2]
[379692385,1755373840766,-480.0,0.00020162,2]
[379692386,1755373840775,-727.76,0.00020162,2]
[379692387,1755373840785,-5019.37,0.00020162,2]
[379692388,1755373840794,-480.0,0.00020162,2]
[379692389,1755373840803,-158.02387166,0.00020162,2]
[379692390,1755373840812,-277.35383216,0.00020162,2]
[379692391,1755373840821,-480.0,0.00020162,2]
[379692392,1755373840831,-3243.54,0.00020162,2]
[379692393,1755373840841,-497.8,0.00020162,2]
[379692394,1755373840850,-1150.57,0.00020162,2]
[379692395,1755373840859,-480.0,0.00020162,2]
[379692396,1755373840868,-480.0,0.00020162,2]
[379692397,1755373840877,-459.8299533,0.00020162,2]
[379692398,1755373840886,-480.0,0.00020162,2]
[379692399,1755373840896,-480.0,0.00020162,2]
[379692400,1755373840904,-480.0,0.00020162,2]
[379692401,1755373840914,-480.0,0.00020162,2]
[379692402,1755373840923,-480.0,0.00020162,2]
[379692403,1755373840933,-68690.2238676,0.00020163,2]
[379692404,1755373840942,-1000.0,0.00020164,2]
[379692406,1755373840951,-459.654754,0.00020187,2]
[379692408,1755373840961,-158.32636424,0.000202,2]
[379692409,1755373840970,-151.0,0.0002025,2]
[379692410,1755373840980,-17842.522448,0.0002025,2]
[379692411,1755373840989,-1854.63380226,0.0002025,2]
[379692412,1755373840999,-579.83,0.00020251,2]
[379692413,1755373841008,-579.83,0.00020261,2]
[379692414,1755373841018,-579.83,0.00020261,2]
[379692415,1755373841027,-579.83,0.00020261,2]
[379692416,1755373841036,-579.83,0.00020261,2]
[379692417,1755373841046,-168.0,0.00020262,2]
[379692418,1755373841055,-480.0,0.00020262,2]
[379692419,1755373841064,-480.0,0.00020262,2]
[379692420,1755373841074,-480.0,0.00020262,2]
[379692421,1755373841084,-480.0,0.00020262,2]
[379692422,1755373841094,-283.24203732,0.00020262,2]
[379692423,1755373841103,-480.0,0.00020262,2]
[379692424,1755373841113,-480.0,0.00020262,2]
[379692425,1755373841123,-480.0,0.00020262,2]
[379692426,1755373841133,-717.27,0.00020262,2]
[379692427,1755373841143,-480.0,0.00020262,2]
[379692428,1755373841152,-480.0,0.00020262,2]
[379692429,1755373841162,-480.0,0.00020262,2]
[379692430,1755373841172,-480.0,0.00020262,2]
[379692431,1755373841181,-550.52,0.00020262,2]
[379692432,1755373841191,-480.0,0.00020262,2]
[379692433,1755373841200,-480.0,0.00020262,2]
[379692434,1755373841210,-480.0,0.00020262,2]
[379692435,1755373841220,-480.0,0.00020262,2]
[379692436,1755373841230,-480.0,0.00020262,2]
[379692437,1755373841239,-500.0,0.00020262,2]
[379692438,1755373841248,-480.0,0.00020262,2]
[379692439,1755373841258,-480.0,0.00020262,2]
[379692440,1755373841267,-480.0,0.00020262,2]
[379692441,1755373841277,-480.0,0.00020262,2]
[379692442,1755373841287,-480.0,0.00020262,2]
[379692443,1755373841303,-480.0,0.00020262,2]
[379692444,1755373841313,-480.0,0.00020262,2]
[379692445,1755373841323,-440.0,0.00020262,2]
[379692446,1755373841332,-511.73985363,0.00020262,2]
[379692448,1755373841342,-480.0,0.00020262,2]
[379692450,1755373841351,-480.0,0.00020262,2]
[379692452,1755373841360,-167.02097705,0.00020262,2]
[379692454,1755373841370,-506.71098924,0.00020262,2]
[379692456,1755373841379,-332.32145193,0.00020262,2]
[379692458,1755373841388,-576.81017485,0.00020262,2]
[379692460,1755373841400,-480.0,0.00020262,2]
[379692463,1755373841417,-458.02955017,0.00020262,2]
[379692464,1755373841426,-480.0,0.00020262,2]
[379692465,1755373841435,-1397.33,0.00020262,2]
[379692466,1755373841444,-480.0,0.00020262,2]
[379692468,1755373841453,-480.0,0.00020262,2]
[379692470,1755373841462,-480.0,0.00020262,2]
[379692472,1755373841472,-480.0,0.00020262,2]
[379692474,1755373841481,-452.94576169,0.00020262,2]
[379692476,1755373841490,-480.0,0.00020262,2]
[379692478,1755373841500,-464.10991116,0.00020262,2]
[379692479,1755373841510,-480.0,0.00020262,2]
[379692480,1755373841520,-480.0,0.00020262,2]
[379692481,1755373841529,-480.0,0.00020262,2]
[379692483,1755373841538,-480.0,0.00020262,2]
[379692485,1755373841548,-480.0,0.00020262,2]
[379692487,1755373841557,-460.0,0.00020262,2]
[379692489,1755373841566,-480.0,0.00020262,2]
[379692491,1755373841576,-480.0,0.00020262,2]
[379692493,1755373841585,-480.0,0.00020262,2]
[379692495,1755373841594,-1776.86,0.00020262,2]
[379692497,1755373841603,-480.0,0.00020262,2]
[379692499,1755373841613,-480.0,0.00020262,2]
[379692501,1755373841622,-769.68,0.00020262,2]
[379692503,1755373841631,-480.0,0.00020262,2]
[379692505,1755373841641,-480.0,0.00020262,2]
[379692507,1755373841651,-480.0,0.00020262,2]
[379692509,1755373841660,-480.0,0.00020262,2]
[379692511,1755373841669,-480.0,0.00020262,2]
[379692513,1755373841679,-480.0,0.00020262,2]
[379692515,1755373841688,-480.0,0.00020262,2]
[379692517,1755373841697,-934.74,0.00020262,2]
[379692519,1755373841706,-480.0,0.00020262,2]
[379692521,1755373841715,-460.0,0.00020262,2]
[379692523,1755373841724,-480.0,0.00020262,2]
[379692525,1755373841733,-480.0,0.00020262,2]
[379692527,1755373841743,-480.0,0.00020262,2]
[379692529,1755373841752,-590.35,0.00020262,2]
[379692531,1755373841762,-460.0,0.00020262,2]
[379692533,1755373841771,-1028.84,0.00020262,2]
[379692535,1755373841781,-480.0,0.00020262,2]
[379692537,1755373841791,-480.0,0.00020262,2]
[379692539,1755373841800,-480.0,0.00020262,2]
[379692541,1755373841809,-480.0,0.00020262,2]
[379692543,1755373841818,-460.0,0.00020262,2]
[379692545,1755373841827,-480.0,0.00020262,2]
[379692547,1755373841836,-480.0,0.00020262,2]
[379692549,1755373841846,-480.0,0.00020262,2]
[379692551,1755373841860,-521.43418457,0.00020262,2]
[379692553,1755373841869,-480.0,0.00020262,2]
[379692555,1755373841879,-480.0,0.00020262,2]
[379692557,1755373841888,-480.0,0.00020262,2]
[379692559,1755373841899,-480.0,0.00020262,2]
[379692561,1755373841908,-480.0,0.00020262,2]
[379692563,1755373841918,-480.0,0.00020262,2]
[379692565,1755373841927,-547.58,0.00020262,2]
[379692567,1755373841937,-480.0,0.00020262,2]
[379692569,1755373841946,-480.0,0.00020262,2]
[379692571,1755373841956,-480.0,0.00020262,2]
[379692573,1755373841965,-480.0,0.00020262,2]
[379692575,1755373841974,-610.07,0.00020262,2]
[379692577,1755373841984,-440.68403278,0.00020262,2]
[379692579,1755373841993,-480.0,0.00020262,2]
[379692581,1755373842002,-460.2436315,0.00020262,2]
[379692583,1755373842011,-480.0,0.00020262,2]
[379692585,1755373842020,-480.0,0.00020262,2]
[379692587,1755373842030,-480.0,0.00020262,2]
[379692589,1755373842040,-480.0,0.00020262,2]
[379692591,1755373842049,-460.50193355,0.00020262,2]
[379692593,1755373842059,-480.0,0.00020262,2]
[379692595,1755373842069,-480.0,0.00020262,2]
[379692597,1755373842078,-480.0,0.00020262,2]
[379692599,1755373842087,-480.0,0.00020262,2]
[379692601,1755373842097,-402.04261588,0.00020262,2]
[379692603,1755373842106,-460.0,0.00020262,2]
[379692605,1755373842115,-460.0,0.00020262,2]
[379692607,1755373842125,-460.0,0.00020262,2]
[379692609,1755373842135,-480.0,0.00020262,2]
[379692611,1755373842144,-460.24108421,0.00020262,2]
[379692613,1755373842154,-1242.48,0.00020262,2]
[379692615,1755373842162,-599.94,0.00020262,2]
[379692617,1755373842172,-460.0,0.00020262,2]
[379692619,1755373842181,-895.61,0.00020262,2]
[379692621,1755373842191,-480.0,0.00020262,2]
[379692623,1755373842201,-480.0,0.00020262,2]
[379692625,1755373842211,-480.0,0.00020262,2]
[379692627,1755373842220,-480.0,0.00020262,2]
[379692629,1755373842230,-1216.57,0.00020262,2]
[379692631,1755373842239,-543.26,0.00020262,2]
[379692633,1755373842248,-460.0,0.00020262,2]
[379692635,1755373842258,-522.17119449,0.00020262,2]
[379692637,1755373842267,-480.0,0.00020262,2]
[379692639,1755373842276,-480.0,0.00020262,2]
[379692641,1755373842285,-480.0,0.00020262,2]
[379692643,1755373842295,-480.0,0.00020262,2]
[379692646,1755373842307,-842.41,0.00020262,2]
[379692648,1755373842317,-480.0,0.00020262,2]
[379692649,1755373842326,-480.0,0.00020262,2]
[379692652,1755373842335,-462.74513742,0.00020262,2]
[379692654,1755373842345,-480.0,0.00020262,2]
[379692656,1755373842355,-822.64,0.00020262,2]
[379692658,1755373842365,-297.81165956,0.00020262,2]
[379692660,1755373842374,-480.0,0.00020262,2]
[379692662,1755373842383,-480.0,0.00020262,2]
[379692663,1755373842393,-480.0,0.00020262,2]
[379692665,1755373842401,-480.0,0.00020262,2]
[379692667,1755373842410,-480.0,0.00020262,2]
[379692669,1755373842420,-2089.01,0.00020262,2]
[379692671,1755373842429,-480.0,0.00020262,2]
[379692673,1755373842440,-512.87567466,0.00020262,2]
[379692675,1755373842449,-480.0,0.00020262,2]
[379692677,1755373842458,-480.0,0.00020262,2]
[379692679,1755373842468,-480.0,0.00020262,2]
[379692681,1755373842477,-480.0,0.00020262,2]
[379692684,1755373842487,-480.0,0.00020262,2]
[379692685,1755373842496,-480.0,0.00020262,2]
[379692687,1755373842506,-460.4821898,0.00020262,2]
[379692689,1755373842516,-480.0,0.00020262,2]
[379692691,1755373842526,-579.83,0.00020262,2]
[379692693,1755373842538,-579.83,0.00020262,2]
[379692695,1755373842548,-579.83,0.00020262,2]
[379692697,1755373842557,-579.83,0.00020262,2]
[379692699,1755373842567,-480.0,0.00020262,2]
[379692701,1755373842577,-460.0,0.00020262,2]
[379692703,1755373842588,-480.0,0.00020262,2]
[379692705,1755373842598,-1218.1,0.00020262,2]
[379692707,1755373842607,-468.21008992,0.00020262,2]
[379692710,1755373842617,-460.0,0.00020262,2]
[379692712,1755373842629,-460.0,0.00020262,2]
[379692714,1755373842638,-480.0,0.00020262,2]
[379692716,1755373842648,-480.0,0.00020262,2]
[379692718,1755373842658,-480.0,0.00020262,2]
[379692720,1755373842667,-480.0,0.00020262,2]
[379692722,1755373842676,-480.0,0.00020262,2]
[379692724,1755373842687,-460.6862986,0.00020262,2]
[379692726,1755373842696,-480.0,0.00020262,2]
[379692728,1755373842707,-460.52308998,0.00020262,2]
[379692730,1755373842716,-480.0,0.00020262,2]
[379692732,1755373842729,-480.0,0.00020262,2]
[379692734,1755373842739,-480.0,0.00020262,2]
[379692736,1755373842748,-480.0,0.00020262,2]
[379692738,1755373842758,-480.0,0.00020262,2]
[379692740,1755373842767,-461.45994006,0.00020262,2]
[379692742,1755373842777,-480.0,0.00020262,2]
[379692744,1755373842789,-480.0,0.00020262,2]
[379692746,1755373842799,-480.0,0.00020262,2]
[379692748,1755373842809,-480.0,0.00020262,2]
[379692750,1755373842818,-480.0,0.00020262,2]
[379692752,1755373842827,-480.0,0.00020262,2]
[379692754,1755373842837,-1515.3,0.00020262,2]
[379692756,1755373842846,-460.0,0.00020262,2]
[379692758,1755373842856,-480.0,0.00020262,2]
[379692760,1755373842865,-460.0,0.00020262,2]
[379692762,1755373842875,-480.0,0.00020262,2]
[379692764,1755373842884,-827.06,0.00020262,2]
[379692766,1755373842894,-480.0,0.00020262,2]
[379692768,1755373842903,-460.0,0.00020262,2]
[379692770,1755373842912,-480.0,0.00020262,2]
[379692782,1755373843041,-480.0,0.00020262,2]
[379692784,1755373843051,-480.0,0.00020262,2]
[379692786,1755373843060,-1050.53,0.00020262,2]
[379692788,1755373843070,-587.93,0.00020262,2]
[379692790,1755373843080,-480.0,0.00020262,2]
[379692792,1755373843089,-370.59119538,0.00020262,2]
[379692794,1755373843099,-480.0,0.00020262,2]
[379692796,1755373843109,-480.0,0.00020262,2]
[379692798,1755373843120,-544.55,0.00020262,2]
[379692801,1755373843129,-599.73,0.00020262,2]
[379692804,1755373843139,-480.0,0.00020262,2]
[379692806,1755373843154,-1000.0,0.00020262,2]
[379692808,1755373843164,-480.0,0.00020262,2]
[379692810,1755373843174,-480.0,0.00020262,2]
[379692812,1755373843183,-480.0,0.00020262,2]
[379692814,1755373843192,-480.0,0.00020262,2]
[379692816,1755373843202,-545.17,0.00020262,2]
[379692818,1755373843211,-461.78247699,0.00020262,2]
[379692820,1755373843221,-480.0,0.00020262,2]
[379692822,1755373843230,-480.0,0.00020262,2]
[379692824,1755373843239,-480.0,0.00020262,2]
[379692826,1755373843248,-480.0,0.00020262,2]
[379692828,1755373843258,-480.0,0.00020262,2]
[379692830,1755373843267,-489.18,0.00020262,2]
[379692832,1755373843276,-480.0,0.00020262,2]
[379692833,1755373843286,-480.0,0.00020262,2]
[379692834,1755373843295,-500.0,0.00020262,2]
[379692835,1755373843305,-500.0,0.00020262,2]
[379692838,1755373843315,-500.0,0.00020262,2]
[379692839,1755373843324,-200.40959558,0.00020262,2]
[379692840,1755373843333,-1045.74,0.00020262,2]
[379692841,1755373843343,-500.0,0.00020262,2]
[379692842,1755373843352,-500.0,0.00020262,2]
[379692843,1755373843361,-500.0,0.00020262,2]
[379692844,1755373843371,-500.0,0.00020262,2]
[379692845,1755373843380,-480.0,0.00020262,2]
[379692846,1755373843390,-480.0,0.00020262,2]
[379692847,1755373843399,-480.0,0.00020262,2]
[379692848,1755373843409,-480.0,0.00020262,2]
[379692849,1755373843418,-875.31,0.00020262,2]
[379692850,1755373843427,-480.0,0.00020262,2]
[379692851,1755373843437,-480.0,0.00020262,2]
[379692852,1755373843447,-480.0,0.00020262,2]
[379692853,1755373843456,-480.0,0.00020262,2]
[379692854,1755373843465,-480.0,0.00020262,2]
[379692855,1755373843475,-480.0,0.00020263,2]
[379692856,1755373843485,-480.0,0.00020263,2]
[379692857,1755373843495,-480.0,0.00020263,2]
[379692858,1755373843504,-480.0,0.00020263,2]
[379692859,1755373843514,-480.0,0.00020263,2]
[379692860,1755373843524,-480.0,0.00020263,2]
[379692861,1755373843535,-461.72528166,0.00020263,2]
[379692862,1755373843545,-474.73876857,0.00020263,2]
[379692863,1755373843555,-460.0,0.00020263,2]
[379692864,1755373843565,-328.55990969,0.00020263,2]
[379692865,1755373843575,-480.0,0.00020263,2]
[379692866,1755373843585,-480.0,0.00020263,2]
[379692867,1755373843595,-593.78,0.00020263,2]
[379692868,1755373843605,-480.0,0.00020263,2]
[379692869,1755373843614,-500.0,0.00020263,2]
[379692870,1755373843623,-500.0,0.00020263,2]
[379692871,1755373843633,-500.0,0.00020263,2]
[379692872,1755373843643,-480.0,0.00020263,2]
[379692873,1755373843652,-460.0,0.00020263,2]
[379692874,1755373843661,-480.0,0.00020263,2]
[379692875,1755373843670,-480.0,0.00020263,2]
[379692876,1755373843679,-480.0,0.00020263,2]
[379692877,1755373843689,-432.901425,0.00020263,2]
[379692879,1755373843698,-480.0,0.00020263,2]
[379692881,1755373843707,-480.0,0.00020263,2]
[379692883,1755373843717,-480.0,0.00020263,2]
[379692885,1755373843726,-480.0,0.00020263,2]
[379692887,1755373843735,-480.0,0.00020263,2]
[379692889,1755373843745,-480.0,0.00020263,2]
[379692891,1755373843755,-936.92,0.00020263,2]
[379692893,1755373843766,-480.0,0.00020263,2]
[379692895,1755373843775,-480.0,0.00020263,2]
[379692897,1755373843785,-480.0,0.00020263,2]
[379692899,1755373843795,-480.0,0.00020263,2]
[379692901,1755373843804,-779.51,0.00020263,2]
[379692903,1755373843813,-816.53,0.00020263,2]
[379692906,1755373843822,-606.69,0.00020263,2]
[379692910,1755373843831,-480.0,0.00020263,2]
[379692914,1755373843841,-480.0,0.00020263,2]
[379692917,1755373843850,-480.0,0.00020263,2]
[379692920,1755373843862,-579.83,0.00020263,2]
[379692922,1755373843871,-579.83,0.00020263,2]
[379692924,1755373843882,-579.83,0.00020263,2]
[379692926,1755373843891,-480.0,0.00020263,2]
[379692928,1755373843902,-579.83,0.00020263,2]
[379692930,1755373843911,-480.0,0.00020263,2]
[379692932,1755373843920,-480.0,0.00020263,2]
[379692934,1755373843931,-1959.8,0.00020263,2]
[379692936,1755373843940,-460.0,0.00020263,2]
[379692938,1755373843949,-480.0,0.00020263,2]
[379692940,1755373843959,-480.0,0.00020263,2]
[379692942,1755373843969,-480.0,0.00020263,2]
[379692944,1755373843978,-2282.09,0.00020263,2]
[379692946,1755373843988,-480.0,0.00020263,2]
[379692949,1755373843998,-480.0,0.00020263,2]
[379692951,1755373844008,-480.0,0.00020263,2]
[379692953,1755373844019,-480.0,0.00020263,2]
[379692955,1755373844028,-460.0,0.00020263,2]
[379692957,1755373844038,-480.0,0.00020263,2]
[379692959,1755373844047,-480.0,0.00020263,2]
[379692961,1755373844057,-480.0,0.00020263,2]
[379692963,1755373844068,-480.0,0.00020263,2]
[379692965,1755373844077,-557.46,0.00020263,2]
[379692967,1755373844087,-480.0,0.00020263,2]
[379692969,1755373844096,-631.08,0.00020263,2]
[379692971,1755373844106,-9515.0,0.00020263,2]
[379692973,1755373844115,-500.0,0.00020263,2]
[379692975,1755373844125,-500.0,0.00020263,2]
[379692977,1755373844135,-500.0,0.00020263,2]
[379692979,1755373844144,-500.0,0.00020263,2]
[379692981,1755373844153,-500.0,0.00020263,2]
[379692983,1755373844164,-387.2477482,0.00020263,2]
[379692985,1755373844173,-480.0,0.00020263,2]
[379692987,1755373844183,-739.93,0.00020263,2]
[379692989,1755373844193,-480.0,0.00020264,2]
[379692991,1755373844204,-480.0,0.00020264,2]
[379692993,1755373844213,-480.0,0.00020264,2]
[379692995,1755373844223,-480.0,0.00020264,2]
[379692997,1755373844233,-460.0,0.00020264,2]
[379692999,1755373844243,-480.0,0.00020264,2]
[379693001,1755373844252,-460.0,0.00020264,2]
[379693003,1755373844262,-758.38,0.00020264,2]
[379693005,1755373844272,-360.0,0.00020264,2]
[379693007,1755373844282,-460.0,0.00020264,2]
[379693009,1755373844291,-460.0,0.00020264,2]
[379693011,1755373844300,-460.0,0.00020264,2]
[379693013,1755373844309,-480.0,0.00020264,2]
[379693015,1755373844318,-480.0,0.00020264,2]
[379693017,1755373844328,-480.0,0.00020264,2]
[379693019,1755373844337,-480.0,0.00020264,2]
[379693021,1755373844348,-480.0,0.00020264,2]
[379693023,1755373844357,-480.0,0.00020264,2]
[379693025,1755373844367,-480.0,0.00020264,2]
[379693027,1755373844376,-480.0,0.00020264,2]
[379693029,1755373844385,-480.0,0.00020264,2]
[379693031,1755373844394,-480.0,0.00020264,2]
[379693033,1755373844404,-480.0,0.00020264,2]
[379693035,1755373844414,-480.0,0.00020264,2]
[379693037,1755373844423,-1151.56,0.00020264,2]
[379693039,1755373844433,-480.0,0.00020264,2]
[379693041,1755373844442,-366.16066911,0.00020264,2]
[379693043,1755373844451,-480.0,0.00020264,2]
[379693045,1755373844460,-480.0,0.00020264,2]
[379693047,1755373844470,-480.0,0.00020264,2]
[379693049,1755373844479,-1000.0,0.00020264,2]
[379693051,1755373844488,-480.0,0.00020264,2]
[379693053,1755373844497,-460.51279799,0.00020264,2]
[379693055,1755373844506,-480.0,0.00020264,2]
[379693057,1755373844515,-480.0,0.00020264,2]
[379693059,1755373844525,-480.0,0.00020264,2]
[379693061,1755373844534,-455.40427988,0.00020264,2]